[Event "2nd Goa GM Open 2019"]
[Site "Goa"]
[Date "2019.06.22"]
[Round "7.8"]
[White "Neverov, Valeriy"]
[Black "Aleksandrov, Aleksej"]
[Result "0-1"]
[ECO "A05"]
[WhiteElo "2470"]
[BlackElo "2588"]
[Annotator "ChessBase"]
[PlyCount "104"]
[EventDate "2019.06.17"]
[EventType "swiss"]
[EventCountry "IND"]
[SourceTitle "playchess.com"]
[Source "ChessBase"]
[SourceQuality "1"]
[TimeControl "5400+30"]

1. Nf3 {[%emt 0:00:00]} Nf6 {[%emt 0:00:00]} 2. c4 {[%emt 0:00:56]} e6 {[%emt 0:00:00]} 3. e3 {[%emt 0:02:41]} d5 {[%emt 0:03:27]} 4. Nc3 {[%emt 0:01:32]} dxc4 {[%emt 0:03:43]} 5. Bxc4 {[%emt 0:00:58]} a6 {[%emt 0:00:05]} 6. O-O {[%emt 0:05:43]} c5 {[%emt 0:00:56]} 7. b3 {[%emt 0:01:10]} Nc6 {[%emt 0:00:47]} 8. Bb2 {[%emt 0:00:05]} Be7 {[%emt 0:00:16]} 9. Rc1 {[%emt 0:05:26]} O-O {[%emt 0:04:48]} 10. Qc2 {[%emt 0:00:39]} b6 {[%emt 0:00:19]} 11. Rfd1 {[%emt 0:05:02]} Bb7 {[%emt 0:00:27]} 12. d4 {[%emt 0:07:28]} cxd4 {[%emt 0:03:01]} 13. Nxd4 {[%emt 0:00:53]} Nxd4 {[%emt 0:02:57]} 14. Rxd4 {[%emt 0:00:08]} Qb8 {[%emt 0:08:23]} 15. h3 {[%emt 0:04:30]} Qe5 {[%emt 0:02:41]} 16. Qd1 {[%emt 0:04:57]} Qg5 {[%emt 0:10:36]} 17. Bf1 {[%emt 0:07:31]} Rac8 {[%emt 0:02:08]} 18. Qe2 {[%emt 0:09:03]} h6 {[%emt 0:06:12]} 19. Rdd1 {[%emt 0:03:53]} b5 {[%emt 0:00:40]} 20. Nb1 {[%emt 0:08:27]} Qg6 {[%emt 0:00:09]} 21. Nd2 {[%emt 0:01:38]} Rfd8 {[%emt 0:07:42]} 22. Nf3 {[%emt 0:03:04]} Rxc1 {[%emt 0:00:11]} 23. Rxc1 {[%emt 0:01:46]} Bd6 {[%emt 0:11:20]} 24. Ne5 {[%emt 0:04:06]} Qg5 {[%emt 0:02:22]} 25. Rd1 {[%emt 0:05:49]} Nd5 {[%emt 0:04:41]} 26. Nd3 {[%emt 0:02:36]} b4 {[%emt 0:00:33]} 27. Rc1 {[%emt 0:03:24]} h5 {[%emt 0:01:43]} 28. Nc5 {[%emt 0:03:58]} Nc3 {[%emt 0:00:16]} 29. Bxc3 {[%emt 0:00:32]} Bxc5 {[%emt 0:00:27]} 30. Bb2 {[%emt 0:00:24]} Rd5 {[%emt 0:00:53]} 31. Rd1 {[%emt 0:02:21]} Rf5 {[%emt 0:03:09]} 32. Qd3 {[%emt 0:01:00]} Bb6 {[%emt 0:00:15]} 33. Rd2 {[%emt 0:03:09]} h4 {[%emt 0:01:26]} 34. Bd4 {[%emt 0:01:22]} Rd5 {[%emt 0:02:03]} 35. Qc4 {[%emt 0:00:45]} e5 {[%emt 0:00:59]} 36. Bc3 {[%emt 0:00:26]} bxc3 {[%emt 0:06:29]} 37. Rxd5 {[%emt 0:00:04]} Bxd5 {[%emt 0:01:54]} 38. Qxd5 {[%emt 0:00:03]} Bxe3 {[%emt 0:00:06]} 39. fxe3 {[%emt 0:01:28]} Qxe3+ {[%emt 0:00:05]} 40. Kh2 {[%emt 0:00:29]} Qg3+ {[%emt 0:01:30]} 41. Kg1 {[%emt 0:00:14]} Qe1 {[%emt 0:02:19]} 42. Qc4 {[%emt 0:00:47]} g6 {[%emt 0:00:41]} 43. Kh2 {[%emt 0:00:31]} e4 {[%emt 0:00:26]} 44. Be2 {[%emt 0:00:24]} Qd2 {[%emt 0:00:41]} 45. Qxe4 {[%emt 0:00:36]} c2 {[%emt 0:00:04]} 46. Qe8+ {[%emt 0:00:23]} Kg7 47. Qe5+ {[%emt 0:00:29]} Kh7 {[%emt 0:00:30]} 48. Qc7 {[%emt 0:00:38]} Kh6 {[%emt 0:00:49]} 49. Qe5 {[%emt 0:00:29]} c1=Q {[%emt 0:01:29]} 50. Qh8+ {[%emt 0:00:28]} Kg5 {[%emt 0:00:07]} 51. Qe5+ {[%emt 0:00:22]} f5 {[%emt 0:00:11]} 52. Qe7+ {[%emt 0:00:38]} Kf4 {[%emt 0:00:06]} 0-1

[Event "2nd Goa GM Open 2019"]
[Site "Goa"]
[Date "2019.06.22"]
[Round "7.9"]
[White "Stupak, Kirill"]
[Black "Khusenkhojaev, Muhammad"]
[Result "1-0"]
[ECO "D37"]
[WhiteElo "2584"]
[BlackElo "2446"]
[Annotator "ChessBase"]
[PlyCount "107"]
[EventDate "2019.06.17"]
[EventType "swiss"]
[EventCountry "IND"]
[SourceTitle "playchess.com"]
[Source "ChessBase"]
[SourceQuality "1"]
[TimeControl "5400+30"]

1. d4 {[%emt 0:00:00]} Nf6 {[%emt 0:00:00]} 2. c4 {[%emt 0:00:00]} e6 {[%emt 0:00:08]} 3. Nf3 {[%emt 0:00:18]} d5 {[%emt 0:00:23]} 4. Nc3 {[%emt 0:02:59]} Be7 {[%emt 0:01:02]} 5. g3 {[%emt 0:01:09]} dxc4 {[%emt 0:00:41]} 6. Bg2 {[%emt 0:00:57]} c5 {[%emt 0:00:22]} 7. Qa4+ {[%emt 0:02:07]} Nbd7 {[%emt 0:03:29]} 8. dxc5 {[%emt 0:04:35]} Bxc5 {[%emt 0:00:50]} 9. Qxc4 {[%emt 0:05:04]} a6 {[%emt 0:01:40]} 10. Qb3 {[%emt 0:06:34]} Qb6 {[%emt 0:06:43]} 11. Qxb6 {[%emt 0:00:19]} Nxb6 {[%emt 0:00:18]} 12. O-O {[%emt 0:00:13]} Nbd5 {[%emt 0:00:20]} 13. Bd2 {[%emt 0:05:09]} O-O {[%emt 0:14:03]} 14. Ne5 {[%emt 0:02:33]} Bd4 {[%emt 0:02:12]} 15. Nf3 {[%emt 0:04:14]} Ba7 {[%emt 0:03:13]} 16. Rac1 {[%emt 0:02:08]} Rd8 {[%emt 0:04:38]} 17. Ne5 {[%emt 0:03:23]} Bd4 {[%emt 0:05:16]} 18. Nxd5 {[%emt 0:02:23]} Nxd5 {[%emt 0:01:10]} 19. Ba5 {[%emt 0:00:09]} Rf8 {[%emt 0:03:53]} 20. Nc4 {[%emt 0:03:54]} b5 {[%emt 0:04:35]} 21. Rfd1 {[%emt 0:03:32]} Bxf2+ {[%emt 0:01:09]} 22. Kxf2 {[%emt 0:00:02]} bxc4 {[%emt 0:00:10]} 23. Rxc4 {[%emt 0:00:26]} Bd7 {[%emt 0:01:34]} 24. e4 {[%emt 0:04:20]} Nf6 {[%emt 0:00:05]} 25. Rc7 {[%emt 0:03:45]} Bb5 {[%emt 0:00:08]} 26. Bf3 {[%emt 0:04:38]} Rfc8 {[%emt 0:03:36]} 27. Rdc1 {[%emt 0:00:26]} Rxc7 {[%emt 0:00:49]} 28. Rxc7 {[%emt 0:00:04]} e5 {[%emt 0:02:03]} 29. b3 {[%emt 0:03:45]} h5 {[%emt 0:01:10]} 30. Bc3 {[%emt 0:08:43]} Re8 {[%emt 0:00:17]} 31. h3 {[%emt 0:01:00]} Bd3 {[%emt 0:03:21]} 32. Ke3 {[%emt 0:01:45]} Bf1 {[%emt 0:00:22]} 33. Rc6 {[%emt 0:01:20]} Kh7 {[%emt 0:05:30]} 34. Rd6 {[%emt 0:05:02]} Re7 {[%emt 0:00:21]} 35. a4 {[%emt 0:04:29]} Re8 {[%emt 0:02:38]} 36. g4 {[%emt 0:01:57]} Bxh3 {[%emt 0:05:12]} 37. gxh5 {[%emt 0:00:01]} Re6 {[%emt 0:05:26]} 38. Rxe6 {[%emt 0:05:31]} Bxe6 {[%emt 0:00:05]} 39. Be2 {[%emt 0:00:24]} Ng4+ {[%emt 0:09:57]} 40. Kf3 {[%emt 0:05:16]} Bc8 {[%emt 0:00:03]} 41. b4 {[%emt 0:01:11]} Kh6 {[%emt 0:00:37]} 42. Kg3 {[%emt 0:02:22]} Kg5 {[%emt 0:02:49]} 43. a5 {[%emt 0:00:08]} f6 {[%emt 0:01:06]} 44. b5 {[%emt 0:02:52]} axb5 {[%emt 0:00:04]} 45. a6 {[%emt 0:00:41]} f5 {[%emt 0:00:20]} 46. exf5 {[%emt 0:00:01]} Nf6 {[%emt 0:00:06]} 47. a7 {[%emt 0:00:29]} Bb7 {[%emt 0:00:50]} 48. Bxe5 {[%emt 0:00:02]} Nxh5+ {[%emt 0:02:43]} 49. Kf2 {[%emt 0:00:00]} Nf4 {[%emt 0:00:50]} 50. Bxf4+ {[%emt 0:00:12]} Kxf4 {[%emt 0:00:04]} 51. Bf1 {[%emt 0:01:19]} b4 {[%emt 0:00:20]} 52. Bg2 {[%emt 0:00:01]} b3 {[%emt 0:00:10]} 53. Bxb7 {[%emt 0:00:03]} b2 {[%emt 0:00:03]} 54. Be4 {[%emt 0:00:05]} 1-0

[Event "2nd Goa GM Open 2019"]
[Site "Goa"]
[Date "2019.06.22"]
[Round "7.10"]
[White "Mitrabha, Guha"]
[Black "Paichadze, Luka"]
[Result "0-1"]
[ECO "E11"]
[WhiteElo "2341"]
[BlackElo "2557"]
[Annotator "ChessBase"]
[PlyCount "88"]
[EventDate "2019.06.17"]
[EventType "swiss"]
[EventCountry "IND"]
[SourceTitle "playchess.com"]
[Source "ChessBase"]
[SourceQuality "1"]
[TimeControl "5400+30"]

1. d4 {[%emt 0:00:00]} Nf6 {[%emt 0:00:00]} 2. Nf3 {[%emt 0:00:00]} e6 3. c4 {[%emt 0:00:00]} Bb4+ {[%emt 0:00:00]} 4. Bd2 {[%emt 0:00:00]} c5 {[%emt 0:00:30]} 5. Bxb4 {[%emt 0:00:36]} cxb4 {[%emt 0:00:07]} 6. a3 {[%emt 0:00:46]} Nc6 {[%emt 0:02:47]} 7. axb4 {[%emt 0:00:22]} Nxb4 {[%emt 0:00:08]} 8. Nc3 {[%emt 0:00:49]} O-O {[%emt 0:00:38]} 9. g3 {[%emt 0:00:14]} d6 {[%emt 0:00:10]} 10. Bg2 {[%emt 0:00:05]} Bd7 {[%emt 0:08:10]} 11. O-O {[%emt 0:01:33]} Qc7 {[%emt 0:01:40]} 12. Qb3 {[%emt 0:02:01]} a5 {[%emt 0:00:06]} 13. Na2 {[%emt 0:03:13]} Nxa2 {[%emt 0:05:11]} 14. Qxa2 {[%emt 0:00:44]} b5 {[%emt 0:09:06]} 15. Rfc1 {[%emt 0:00:36]} bxc4 {[%emt 0:01:07]} 16. Rxc4 {[%emt 0:00:31]} Qb6 {[%emt 0:00:37]} 17. e3 {[%emt 0:01:01]} a4 {[%emt 0:07:37]} 18. Qa3 {[%emt 0:05:32]} Rab8 {[%emt 0:00:50]} 19. Rc2 {[%emt 0:00:10]} Qb4 {[%emt 0:13:12]} 20. Ne1 {[%emt 0:03:54]} Qxa3 {[%emt 0:01:45]} 21. Rxa3 {[%emt 0:02:27]} Rfc8 {[%emt 0:10:57]} 22. Rxc8+ {[%emt 0:00:34]} Rxc8 {[%emt 0:00:04]} 23. Nd3 {[%emt 0:00:04]} Rc2 {[%emt 0:03:45]} 24. Bf1 {[%emt 0:04:04]} g5 {[%emt 0:01:12]} 25. Ra1 {[%emt 0:00:58]} Rd2 {[%emt 0:01:55]} 26. h4 {[%emt 0:04:43]} g4 {[%emt 0:00:54]} 27. Rb1 {[%emt 0:03:44]} Bc6 {[%emt 0:05:44]} 28. Nf4 {[%emt 0:04:16]} Be4 {[%emt 0:00:41]} 29. Ra1 {[%emt 0:00:18]} Rxb2 {[%emt 0:00:09]} 30. Rxa4 {[%emt 0:02:44]} Rb1 {[%emt 0:00:06]} 31. Rc4 {[%emt 0:01:44]} Rd1 {[%emt 0:10:46]} 32. Rc3 {[%emt 0:04:56]} Nd5 {[%emt 0:06:25]} 33. Nxd5 {[%emt 0:00:26]} Bxd5 {[%emt 0:01:21]} 34. Rc2 {[%emt 0:02:02]} Be4 {[%emt 0:02:13]} 35. Rc3 {[%emt 0:00:18]} h5 {[%emt 0:03:31]} 36. Rb3 {[%emt 0:00:14]} Rc1 {[%emt 0:00:39]} 37. Ra3 {[%emt 0:03:30]} Kg7 {[%emt 0:00:19]} 38. Rb3 {[%emt 0:00:09]} Bd5 {[%emt 0:00:34]} 39. Rb4 {[%emt 0:00:04]} Ra1 {[%emt 0:00:18]} 40. f4 {[%emt 0:02:23]} gxf3 {[%emt 0:00:08]} 41. Kf2 {[%emt 0:00:11]} Ra2+ {[%emt 0:00:08]} 42. Ke1 {[%emt 0:00:02]} f2+ {[%emt 0:00:27]} 43. Kd1 {[%emt 0:00:01]} Bf3+ {[%emt 0:00:26]} 44. Kc1 {[%emt 0:00:01]} Be2 {[%emt 0:00:09]} 0-1

[Event "2nd Goa GM Open 2019"]
[Site "Goa"]
[Date "2019.06.22"]
[Round "7.11"]
[White "Debashis, Das"]
[Black "Shyaamnikhil P"]
[Result "1/2-1/2"]
[ECO "A58"]
[WhiteElo "2544"]
[BlackElo "2434"]
[Annotator "ChessBase"]
[PlyCount "166"]
[EventDate "2019.06.17"]
[EventType "swiss"]
[EventCountry "IND"]
[SourceTitle "playchess.com"]
[Source "ChessBase"]
[SourceQuality "1"]
[TimeControl "5400+30"]

1. d4 {[%emt 0:00:00]} Nf6 {[%emt 0:00:00]} 2. c4 {[%emt 0:00:00]} c5 {[%emt 0:00:18]} 3. d5 {[%emt 0:00:05]} b5 {[%emt 0:00:08]} 4. cxb5 {[%emt 0:00:16]} a6 {[%emt 0:00:06]} 5. bxa6 {[%emt 0:00:04]} g6 {[%emt 0:00:18]} 6. Nc3 {[%emt 0:00:04]} Bxa6 {[%emt 0:00:08]} 7. Nf3 {[%emt 0:00:13]} Bg7 {[%emt 0:00:22]} 8. e4 {[%emt 0:00:04]} Bxf1 {[%emt 0:00:08]} 9. Kxf1 {[%emt 0:00:02]} d6 {[%emt 0:00:48]} 10. g3 {[%emt 0:00:04]} Nbd7 {[%emt 0:00:06]} 11. Kg2 {[%emt 0:00:04]} O-O {[%emt 0:03:10]} 12. a4 {[%emt 0:00:02]} Qb8 {[%emt 0:01:57]} 13. Qc2 {[%emt 0:01:36]} Qb4 {[%emt 0:01:12]} 14. h3 {[%emt 0:12:52]} Rfb8 {[%emt 0:00:18]} 15. Ra3 {[%emt 0:00:15]} Nb6 {[%emt 0:07:22]} 16. Rb3 {[%emt 0:04:42]} Qa5 {[%emt 0:01:41]} 17. Bd2 {[%emt 0:02:28]} Qa6 {[%emt 0:14:58]} 18. Ra1 {[%emt 0:01:10]} Ne8 {[%emt 0:00:47]} 19. Nb5 {[%emt 0:13:26]} Qc8 {[%emt 0:04:46]} 20. a5 {[%emt 0:13:06]} Qa6 {[%emt 0:12:56]} 21. Na3 {[%emt 0:02:32]} Nd7 {[%emt 0:02:22]} 22. Nc4 {[%emt 0:03:14]} Nc7 {[%emt 0:00:17]} 23. Rxb8+ {[%emt 0:05:54]} Rxb8 {[%emt 0:00:17]} 24. Rb1 {[%emt 0:00:18]} e6 {[%emt 0:07:45]} 25. dxe6 {[%emt 0:00:31]} fxe6 {[%emt 0:02:59]} 26. Bf4 {[%emt 0:00:48]} e5 {[%emt 0:00:48]} 27. Bd2 {[%emt 0:01:33]} d5 {[%emt 0:01:55]} 28. Ne3 {[%emt 0:07:44]} d4 {[%emt 0:06:15]} 29. Nc4 {[%emt 0:01:48]} Qc6 {[%emt 0:03:15]} 30. b4 {[%emt 0:01:37]} cxb4 {[%emt 0:00:07]} 31. Rxb4 {[%emt 0:00:54]} Rf8 {[%emt 0:00:13]} 32. Ne1 {[%emt 0:10:01]} Na6 {[%emt 0:04:28]} 33. Rb1 {[%emt 0:01:01]} Rc8 {[%emt 0:02:59]} 34. Rc1 {[%emt 0:01:08]} Nac5 {[%emt 0:02:41]} 35. f3 {[%emt 0:00:41]} Qa6 {[%emt 0:00:25]} 36. h4 {[%emt 0:03:10]} Rb8 {[%emt 0:01:55]} 37. Nd3 {[%emt 0:04:43]} Nxd3 {[%emt 0:00:56]} 38. Qxd3 {[%emt 0:00:04]} Nc5 {[%emt 0:00:06]} 39. Qc2 {[%emt 0:00:16]} Rb3 {[%emt 0:00:15]} 40. Qd1 {[%emt 0:03:55]} Rb5 {[%emt 0:03:01]} 41. Na3 {[%emt 0:03:43]} Rb3 {[%emt 0:00:18]} 42. Rxc5 {[%emt 0:00:09]} Rxa3 {[%emt 0:00:04]} 43. Bb4 {[%emt 0:02:44]} Ra2+ {[%emt 0:00:18]} 44. Rc2 {[%emt 0:00:24]} Rxc2+ {[%emt 0:00:50]} 45. Qxc2 {[%emt 0:00:03]} h5 {[%emt 0:00:08]} 46. Be1 {[%emt 0:00:48]} Bh6 {[%emt 0:00:47]} 47. Bb4 {[%emt 0:01:46]} Kh8 {[%emt 0:04:39]} 48. Qa2 {[%emt 0:00:53]} Kg7 {[%emt 0:00:57]} 49. Be1 {[%emt 0:00:38]} Kh8 {[%emt 0:01:12]} 50. Qb2 {[%emt 0:00:41]} Kh7 {[%emt 0:00:14]} 51. Qa2 {[%emt 0:00:25]} Kh8 {[%emt 0:00:07]} 52. Bf2 {[%emt 0:00:40]} d3 {[%emt 0:00:29]} 53. f4 {[%emt 0:00:37]} exf4 {[%emt 0:05:17]} 54. Qd5 {[%emt 0:00:28]} d2 {[%emt 0:05:14]} 55. Bd4+ {[%emt 0:00:06]} Bg7 {[%emt 0:00:07]} 56. Bxg7+ {[%emt 0:00:13]} Kxg7 {[%emt 0:00:06]} 57. Qxd2 {[%emt 0:00:50]} fxg3 {[%emt 0:00:07]} 58. Kxg3 {[%emt 0:00:11]} Qf1 {[%emt 0:01:49]} 59. Qd7+ {[%emt 0:00:19]} Kh6 {[%emt 0:00:12]} 60. Qd2+ {[%emt 0:00:02]} Kg7 {[%emt 0:00:07]} 61. Qc3+ {[%emt 0:00:07]} Kh7 {[%emt 0:00:18]} 62. Qc7+ {[%emt 0:00:24]} Kg8 {[%emt 0:00:06]} 63. Qb8+ {[%emt 0:00:06]} Kg7 {[%emt 0:00:05]} 64. Qa7+ {[%emt 0:00:04]} Kg8 {[%emt 0:00:05]} 65. Qe3 {[%emt 0:01:44]} Qd1 {[%emt 0:00:07]} 66. Qg5 Qd3+ {[%emt 0:01:04]} 67. Kf4 {[%emt 0:01:59]} Qd2+ {[%emt 0:00:07]} 68. Kf3 {[%emt 0:00:03]} Qd1+ {[%emt 0:01:23]} 69. Ke3 {[%emt 0:00:07]} Qc1+ {[%emt 0:00:19]} 70. Kd4 {[%emt 0:00:13]} Qa1+ {[%emt 0:00:09]} 71. Kd3 {[%emt 0:00:34]} Qb1+ {[%emt 0:00:13]} 72. Kc3 {[%emt 0:00:40]} Qe1+ {[%emt 0:01:03]} 73. Kd3 {[%emt 0:00:09]} Qb1+ {[%emt 0:00:06]} 74. Kc3 {[%emt 0:00:24]} Qe1+ {[%emt 0:00:07]} 75. Kd4 {[%emt 0:00:17]} Qa1+ {[%emt 0:00:09]} 76. Kc4 {[%emt 0:00:15]} Qa4+ {[%emt 0:00:18]} 77. Kc3 {[%emt 0:00:06]} Qa3+ {[%emt 0:01:02]} 78. Kd2 {[%emt 0:00:08]} Qb2+ {[%emt 0:00:44]} 79. Ke3 {[%emt 0:00:03]} Qc1+ {[%emt 0:00:07]} 80. Kf3 {[%emt 0:00:04]} Qf1+ {[%emt 0:00:15]} 81. Kg3 {[%emt 0:00:21]} Qe1+ {[%emt 0:00:09]} 82. Kf4 {[%emt 0:00:14]} Qd2+ {[%emt 0:00:12]} 83. Kf3 {[%emt 0:02:31]} Qc2 {[%emt 0:00:40]} 1/2-1/2

[Event "2nd Goa GM Open 2019"]
[Site "Goa"]
[Date "2019.06.22"]
[Round "7.12"]
[White "Fier, Alexandr"]
[Black "Gusain, Himal"]
[Result "1/2-1/2"]
[ECO "A04"]
[WhiteElo "2543"]
[BlackElo "2404"]
[Annotator "ChessBase"]
[PlyCount "112"]
[EventDate "2019.06.17"]
[EventType "swiss"]
[EventCountry "IND"]
[SourceTitle "playchess.com"]
[Source "ChessBase"]
[SourceQuality "1"]
[TimeControl "5400+30"]

1. Nf3 {[%emt 0:00:00]} f5 {[%emt 0:00:38]} 2. d3 {[%emt 0:00:00]} Nc6 {[%emt 0:00:05]} 3. d4 {[%emt 0:00:00]} d6 {[%emt 0:00:45]} 4. d5 {[%emt 0:02:01]} Ne5 {[%emt 0:00:12]} 5. Nxe5 {[%emt 0:02:11]} dxe5 {[%emt 0:00:06]} 6. e4 {[%emt 0:00:29]} Nf6 {[%emt 0:01:26]} 7. Nc3 {[%emt 0:00:59]} e6 {[%emt 0:05:57]} 8. Bb5+ {[%emt 0:00:29]} Bd7 {[%emt 0:01:05]} 9. Bg5 {[%emt 0:09:31]} Bxb5 {[%emt 0:14:40]} 10. Nxb5 {[%emt 0:00:05]} exd5 {[%emt 0:09:58]} 11. Bxf6 {[%emt 0:00:48]} gxf6 {[%emt 0:00:14]} 12. exd5 {[%emt 0:07:01]} h5 {[%emt 0:00:44]} 13. d6 {[%emt 0:03:36]} Bxd6 {[%emt 0:01:40]} 14. Qf3 {[%emt 0:02:56]} Qd7 {[%emt 0:13:56]} 15. Qxb7 {[%emt 0:00:19]} Ke7 {[%emt 0:00:26]} 16. Nxd6 {[%emt 0:02:41]} cxd6 {[%emt 0:00:15]} 17. Qxd7+ {[%emt 0:00:04]} Kxd7 {[%emt 0:00:16]} 18. O-O-O {[%emt 0:00:05]} Ke6 {[%emt 0:03:34]} 19. c4 {[%emt 0:02:39]} Rag8 {[%emt 0:03:50]} 20. g3 {[%emt 0:07:08]} h4 {[%emt 0:00:05]} 21. Rhe1 {[%emt 0:00:57]} hxg3 {[%emt 0:02:25]} 22. hxg3 {[%emt 0:00:03]} Rc8 {[%emt 0:05:08]} 23. b3 Rc5 {[%emt 0:00:06]} 24. Kb2 {[%emt 0:00:30]} d5 {[%emt 0:00:35]} 25. cxd5+ {[%emt 0:02:25]} Rxd5 {[%emt 0:00:04]} 26. Rxd5 {[%emt 0:00:03]} Kxd5 {[%emt 0:00:05]} 27. Kc3 {[%emt 0:00:02]} a5 {[%emt 0:05:18]} 28. Kd3 {[%emt 0:01:10]} Rc8 {[%emt 0:01:50]} 29. Rh1 {[%emt 0:00:12]} a4 {[%emt 0:01:47]} 30. Rb1 {[%emt 0:02:07]} axb3 {[%emt 0:02:00]} 31. axb3 {[%emt 0:01:01]} Ra8 {[%emt 0:00:07]} 32. Rb2 {[%emt 0:00:27]} Ra3 {[%emt 0:01:25]} 33. Ke3 {[%emt 0:02:32]} Kc5 {[%emt 0:01:13]} 34. Rc2+ {[%emt 0:00:02]} Kd5 {[%emt 0:00:05]} 35. Rc3 {[%emt 0:01:23]} Ra1 {[%emt 0:00:08]} 36. b4 {[%emt 0:00:10]} Rb1 {[%emt 0:00:05]} 37. Rc5+ {[%emt 0:00:02]} Kd6 {[%emt 0:00:05]} 38. Rb5 {[%emt 0:00:02]} Rb3+ {[%emt 0:00:37]} 39. Ke2 {[%emt 0:00:02]} Kc6 {[%emt 0:00:16]} 40. Rb8 {[%emt 0:00:03]} Kc7 {[%emt 0:00:27]} 41. Rf8 {[%emt 0:00:04]} Rxb4 {[%emt 0:00:07]} 42. Rxf6 {[%emt 0:00:03]} f4 {[%emt 0:00:04]} 43. gxf4 {[%emt 0:00:39]} exf4 {[%emt 0:00:05]} 44. Kf3 {[%emt 0:00:01]} Kd7 {[%emt 0:00:09]} 45. Rxf4 {[%emt 0:00:04]} Rb3+ {[%emt 0:00:03]} 46. Kg4 {[%emt 0:00:04]} Ke7 {[%emt 0:00:09]} 47. Kg5 {[%emt 0:00:02]} Rb1 {[%emt 0:00:12]} 48. Ra4 {[%emt 0:01:21]} Kf8 {[%emt 0:00:12]} 49. Ra6 {[%emt 0:00:03]} Kf7 {[%emt 0:00:47]} 50. Ra7+ {[%emt 0:00:03]} Kf8 {[%emt 0:00:10]} 51. f4 {[%emt 0:00:04]} Rb6 {[%emt 0:00:07]} 52. f5 {[%emt 0:00:06]} Rc6 {[%emt 0:00:04]} 53. Rh7 {[%emt 0:00:15]} Ra6 {[%emt 0:00:08]} 54. Rh6 {[%emt 0:00:03]} Rxh6 {[%emt 0:00:21]} 55. Kxh6 {[%emt 0:00:02]} Kf7 {[%emt 0:00:05]} 56. f6 {[%emt 0:00:02]} Kxf6 {[%emt 0:00:34]} 1/2-1/2

[Event "2nd Goa GM Open 2019"]
[Site "Goa"]
[Date "2019.06.22"]
[Round "7.13"]
[White "Sarbojit Paul"]
[Black "Tukhaev, Adam"]
[Result "0-1"]
[ECO "C60"]
[WhiteElo "2023"]
[BlackElo "2527"]
[Annotator "ChessBase"]
[PlyCount "72"]
[EventDate "2019.06.17"]
[EventType "swiss"]
[EventCountry "IND"]
[SourceTitle "playchess.com"]
[Source "ChessBase"]
[SourceQuality "1"]
[TimeControl "5400+30"]

1. e4 {[%emt 0:00:21]} e5 {[%emt 0:01:31]} 2. Nf3 {[%emt 0:01:07]} Nc6 {[%emt 0:00:07]} 3. Bb5 {[%emt 0:00:27]} g6 {[%emt 0:01:29]} 4. c3 {[%emt 0:00:32]} a6 {[%emt 0:00:32]} 5. Ba4 {[%emt 0:00:11]} Bg7 {[%emt 0:01:22]} 6. d4 {[%emt 0:01:54]} exd4 {[%emt 0:00:14]} 7. cxd4 {[%emt 0:00:04]} b5 {[%emt 0:00:05]} 8. Bc2 {[%emt 0:00:12]} d6 {[%emt 0:01:27]} 9. h3 {[%emt 0:04:06]} Nf6 {[%emt 0:02:01]} 10. O-O {[%emt 0:02:27]} O-O {[%emt 0:00:06]} 11. Nc3 {[%emt 0:02:54]} Re8 {[%emt 0:00:13]} 12. d5 {[%emt 0:07:02]} Na5 {[%emt 0:09:39]} 13. a3 {[%emt 0:03:37]} Bb7 {[%emt 0:04:38]} 14. Re1 {[%emt 0:03:32]} Nd7 {[%emt 0:07:40]} 15. Bg5 Qb8 16. Nd4 {[%emt 0:24:01]} h6 {[%emt 0:03:49]} 17. Bf4 {[%emt 0:00:52]} Qa7 {[%emt 0:06:59]} 18. Nce2 {[%emt 0:01:36]} Nf6 {[%emt 0:07:58]} 19. f3 {[%emt 0:08:53]} Nc4 {[%emt 0:05:05]} 20. Kh1 {[%emt 0:07:57]} Nxb2 {[%emt 0:20:37]} 21. Qc1 {[%emt 0:00:03]} Nh5 {[%emt 0:00:57]} 22. Be3 {[%emt 0:00:05]} Nc4 {[%emt 0:00:03]} 23. Bg1 {[%emt 0:02:24]} Qb8 {[%emt 0:03:09]} 24. a4 {[%emt 0:03:11]} Qd8 {[%emt 0:00:50]} 25. Rb1 {[%emt 0:04:17]} Qh4 {[%emt 0:04:24]} 26. axb5 {[%emt 0:06:06]} axb5 {[%emt 0:00:05]} 27. Nxb5 {[%emt 0:01:11]} Bc8 {[%emt 0:02:19]} 28. Rf1 {[%emt 0:01:06]} Be5 {[%emt 0:08:59]} 29. f4 {[%emt 0:04:23]} Bxh3 {[%emt 0:00:33]} 30. gxh3 {[%emt 0:05:03]} Qxh3+ {[%emt 0:00:15]} 31. Bh2 {[%emt 0:00:01]} Ne3 {[%emt 0:00:28]} 32. Rf2 {[%emt 0:00:27]} Bxf4 {[%emt 0:04:00]} 33. Nxf4 {[%emt 0:01:51]} Nxf4 {[%emt 0:00:06]} 34. Rb3 {[%emt 0:01:10]} Ng4 {[%emt 0:02:55]} 35. Rxh3 {[%emt 0:01:21]} Nxf2+ {[%emt 0:00:03]} 36. Kg1 {[%emt 0:00:05]} N2xh3+ {[%emt 0:01:09]} 0-1